Workbook

Sheet Távhő Ökocímke Adatlap
I1: Értékelés
A2: Adatlap
A3: Település neve | B3: Nyíregyháza | J3: OK | K3: Kérjük a szakértő írjon egy OK-ot abba a mezőbe, amelyikhez tartozó adatot rendben találta.
A4: Távhőszolgáltató neve | B4: NYÍRTÁVHŐ Kft. | J4: Megj | K4: Kérjük amennyben a szakértő módosítja a távhőszolgáltató által megadott értéket, úgy írja a megfelelő cellába a módosításhoz tartozó megjegyzést.
A5: Távhőrendszer megnevezése | B5: Nyíregyházi távhőszolgáltatás
A6: Távhőrendszerben értékesített hőmennyiség (GJ/a) | B6: 633686 | C6: =+CONCATENATE(,IF(B6>0,CONCATENATE(" = ",ROUND(CONVERT(B6,"GJ","MWh"),0)," MWh/a"),"")) -> = 176024 MWh/a
B7: S
A8: Hőforrás/technológia megnevezése | C8: A | D8: B | E8: C | F8: D | J8: =C8 -> A | K8: =D8 -> B | L8: =E8 -> C | M8: =F8 -> D | N8: =#REF! ->  | O8: =#REF! ->  | P8: =#REF! ->  | Q8: =#REF! ->  | R8: =#REF! ->  | S8: =#REF! ->  | T8: =#REF! ->  | U8: =#REF! ->  | V8: =#REF! ->  | W8: =#REF! -> 
A9: Távhőtermelési technológia | C9: 1. Kizárólagos hőtermelés - szénhidrogének | D9: 9.KET hagyományos gőz-körfolyamatú erőművi blokkban - nem megújuló | E9: 11. KET 1.200 kWe villamos egységteljesítményt meghaladó gázmotorral - nem megújuló | F9: 8. KET kombinált ciklusú erőművi blokkban - nem megújuló | J9: Megj: | K9: Megj: | L9: Megj: | M9: Megj: | N9: Megj: | O9: Megj: | P9: Megj: | Q9: Megj: | R9: Megj: | S9: Megj: | T9: Megj: | U9: Megj: | V9: Megj: | W9: Megj:
A10: Felhasznált primerenergia fajtája | C10: =+VLOOKUP(C9,'1.táblázat'!$A$2:$C$22,3,0) -> Földgáz | D10: =+VLOOKUP(D9,'1.táblázat'!$A$2:$C$22,3,0) -> Földgáz | E10: =+VLOOKUP(E9,'1.táblázat'!$A$2:$C$22,3,0) -> Földgáz | F10: Földgáz | J10: Megj: | K10: Megj: | L10: Megj: | M10: Megj: | N10: Megj: | O10: Megj: | P10: Megj: | Q10: Megj: | R10: Megj: | S10: Megj: | T10: Megj: | U10: Megj: | V10: Megj: | W10: Megj:
A11: Qi (GJ) | C11: 265148 | D11: 0 | E11: =38981-40.748 -> 38940.252 | F11: 450136
A12: Qi (MWh) | B12: =SUM(C12:F12) -> 209506.7367 | C12: =+CONVERT(C11,"GJ","MWh") -> 73652.22222 | D12: =+CONVERT(D11,"GJ","MWh") -> 0 | E12: 10816.73667 | F12: 125037.7778 | J12: Megj: | K12: Megj: | L12: Megj: | M12: Megj: | N12: Megj: | O12: Megj: | P12: Megj: | Q12: Megj: | R12: Megj: | S12: Megj: | T12: Megj: | U12: Megj: | V12: Megj: | W12: Megj:
A13: ai | C13: =ROUND(C12/$B$12,4) -> 0.3516 | D13: =ROUND(D12/$B$12,4) -> 0 | E13: 0.0516 | F13: 0.5968 | J13: - | K13: - | L13: - | M13: - | N13: - | O13: - | P13: - | Q13: - | R13: - | S13: - | T13: - | U13: - | V13: - | W13: -
A14: ei | C14: =VLOOKUP(C$9,'1.táblázat'!$A$1:$B$22,2,FALSE) -> 1.12 | D14: =VLOOKUP(D$9,'1.táblázat'!$A$1:$B$22,2,FALSE) -> 0.87 | E14: =VLOOKUP(E$9,'1.táblázat'!$A$1:$B$22,2,FALSE) -> 0.55 | F14: =VLOOKUP(F$9,'1.táblázat'!$A$1:$B$22,2,FALSE) -> 0.54 | J14: Megj: | K14: Megj: | L14: Megj: | M14: Megj: | N14: Megj: | O14: Megj: | P14: Megj: | Q14: Megj: | R14: Megj: | S14: Megj: | T14: Megj: | U14: Megj: | V14: Megj: | W14: Megj:
A15: h | B15: =+IF(B6>0,ROUND((B12-ROUND(CONVERT(B6,"GJ","MWh"),0))/B12,4),0.15) -> 0.1598 | J15: Megj: | K15: Megj: | L15: Megj: | M15: Megj: | N15: Megj: | O15: Megj: | P15: Megj: | Q15: Megj: | R15: Megj: | S15: Megj: | T15: Megj: | U15: Megj: | V15: Megj: | W15: Megj:
A16: avil | B16: =IF(B12<27800,0.011,IF(B12>=139000,0.006,0.008)) -> 0.006 | J16: Megj: | K16: Megj: | L16: Megj: | M16: Megj: | N16: Megj: | O16: Megj: | P16: Megj: | Q16: Megj: | R16: Megj: | S16: Megj: | T16: Megj: | U16: Megj: | V16: Megj: | W16: Megj:
A17: evil | B17: 2.5 | J17: Megj: | K17: Megj: | L17: Megj: | M17: Megj: | N17: Megj: | O17: Megj: | P17: Megj: | Q17: Megj: | R17: Megj: | S17: Megj: | T17: Megj: | U17: Megj: | V17: Megj: | W17: Megj:
A18: eSUS,távhő,i | B18: =SUM(C18:F18) -> 0 | C18: =VLOOKUP(C10,'3.táblázat'!$A$1:$B$19,2,FALSE) -> 0 | D18: =VLOOKUP(D10,'3.táblázat'!$A$1:$B$19,2,FALSE) -> 0 | E18: =VLOOKUP(E10,'3.táblázat'!$A$1:$B$19,2,FALSE) -> 0 | F18: =VLOOKUP(F10,'3.táblázat'!$A$1:$B$19,2,FALSE) -> 0 | J18: - | K18: - | L18: - | M18: - | N18: - | O18: - | P18: - | Q18: - | R18: - | S18: - | T18: - | U18: - | V18: - | W18: -
A19: bvil,res | B19: 0.1 | J19: Megj: | K19: Megj: | L19: Megj: | M19: Megj: | N19: Megj: | O19: Megj: | P19: Megj: | Q19: Megj: | R19: Megj: | S19: Megj: | T19: Megj: | U19: Megj: | V19: Megj: | W19: Megj:
A20: SPF (csak hőszivattyús termelés esetén) | B20: 3 | J20: - | K20: - | L20: - | M20: - | N20: - | O20: - | P20: - | Q20: - | R20: - | S20: - | T20: - | U20: - | V20: - | W20: -
A22: Primer energia átalakítási tényező | J22: A ________________Kft. _______________távhőrendszerrel ( _______________ GJ primerenergiafelhasználással) pályázott a Távhő Ökocímkére. A pályázat megfelel a mind a formai mind a tartalmi követelményeknek, a megadott adatokat rendben találtam / a fenn jelölt cellákban talált értékeket módosítottam
J24: Az Értékelő bizottság számára elfogadásra javaslom, az alábbi feltételekkel _________________.
T26: Szakértő
C27: A távhőrendszer primer energia átalakítási tényezőjének értéke (kWh/kWh) | O27: =C27 -> A távhőrendszer primer energia átalakítási tényezőjének értéke (kWh/kWh)
C28: =1/(1-B15)*((B17*B16)+SUMPRODUCT(C13:F13,C14:F14)) -> 0.9038847893 | O28: =C28 -> 0.9038847893 | P28: OK
A30: A megújuló energiaforrásokkal termelt távhő részarányának kiszámítása
C37: A távhőrendszerben megújuló energiaforrásokkal termelt távhő részaránya | O37: =C37 -> A távhőrendszerben megújuló energiaforrásokkal termelt távhő részaránya
C38: =(SUMPRODUCT(C13:F13,C18:F18)+B16*B18)/(1+B16) -> 0 | O38: =C38 -> 0 | P38: OK

Sheet 1.táblázat
A1: Távhőtermelő technológia | B1: Távhőtermelő technológia primerenergia-átalakítási tényezője (ei) | C1: Tüzelőanyag
A2: - | B2: 0 | C2: -
A3: 1. Kizárólagos hőtermelés - szénhidrogének | B3: 1.12 | C3: Földgáz
A4: 2. Kizárólagos hőtermelés - biogáz, biometán | B4: 0.6 | C4: Biogáz, biometán
A5: 3. Kizárólagos hőtermelés - szénféleségek | B5: 1.25 | C5: Szénféleségek
A6: 4.Kizárólagos hőtermelés - tüzifa, faapríték, fahulladék, biobrikett, egyéb bio tüzelőanyagok | B6: 0.6 | C6: Tűzifa, faapríték, fahulladék, biobrikett, egyéb bio tüzelőanyagok
A7: 5. Kizárólagos hőtermelés - ipari hulladékhő | B7: 0 | C7: Ipari hulladékhő
A8: 6. Kizárólagos hőtermelés - szoláris- és geotermikus energia | B8: 0 | C8: Szoláris-, geotermikus-, szél- és vízenergia
A9: 7. Nukleáris energia | B9: 0 | C9: Nukleárisenergia
A10: 8. KET kombinált ciklusú erőművi blokkban - nem megújuló | B10: 0.54 | C10: Földgáz
A11: 8. KET kombinált ciklusú erőművi blokkban - megújuló | B11: 0.324 | C11: Tűzifa, faapríték, fahulladék, biobrikett, egyéb bio tüzelőanyagok
A12: 9.KET hagyományos gőz-körfolyamatú erőművi blokkban - nem megújuló | B12: 0.87 | C12: Földgáz
A13: 9.KET hagyományos gőz-körfolyamatú erőművi blokkban - megújuló | B13: 0.522 | C13: Tűzifa, faapríték, fahulladék, biobrikett, egyéb bio tüzelőanyagok
A14: 10. KET hagyományos gőz-körfolyamatú erőművi blokkban kommunális hulladékégetésével | B14: 0.7 | C14: Kommunális hulladék
A15: 11. KET 1.200 kWe villamos egységteljesítményt meghaladó gázmotorral - nem megújuló | B15: 0.55 | C15: Földgáz
A16: 11. KET 1.200 kWe villamos egységteljesítményt meghaladó gázmotorral - megújuló | B16: 0.33 | C16: Biogáz, biometán
A17: 12. KET 1.200 kWe villamos egységteljesítményt nem meghaladó gázmotorral - nem megújuló | B17: 0.72 | C17: Földgáz
A18: 12. KET 1.200 kWe villamos egységteljesítményt nem meghaladó gázmotorral megújuló | B18: 0.432 | C18: Biogáz, biometán
A19: 13. KET hőhasznosító kazánnal ellátott gázturbinás erőműben - nem megújuló | B19: 0.82 | C19: Földgáz
A20: 13. KET hőhasznosító kazánnal ellátott gázturbinás erőműben - megújuló | B20: 0.492 | C20: Biogáz, biometán
A21: 14. KET hőszivattyúval - nem megújuló | B21: 0.71 | C21: Hőszivattyú
A22: 14. KET hőszivattyúval - megújuló | B22: 0.426 | C22: Hőszivattyú
A25: KET = Kapcsolt Energia Termelés

Sheet 2.táblázat
A1: A hőtermeléshez és primer oldali keringtetéshez felhasznált villamos energia aránya a kiadott hőmennyiségre vetítve (avil) a hőtermelő által kiadott hőmennyiség (Q [MWh/év]) függvényében
A2: Q (MWh/év) | B2: avill (kWh/kWh)
A3: Q < 27.800 | B3: 0.011
A4: 27.800 <= Q < 139.000 | B4: 0.008
A5: 139.000 =< Q | B5: 0.006

Sheet 3.táblázat
A1: Primer energiaforrás | B1: Megújuló részarány
B2: eSUS,távhő,i
A3: - | B3: 0
A5: Szén | B5: 0
A6: Szénféleségek | B6: 0
A7: Tűzifa, faapríték, fahulladék, biobrikett, egyéb bio tüzelőanyagok | B7: 1
A8: Szoláris-, geotermikus-, szél- és vízenergia | B8: 1
A9: Nukleárisenergia | B9: 0
A10: Ipari hulladékhő | B10: 1
A11: Kommunális hulladék | B11: 0.5
A12: Tüzelőolajok | B12: 0
A13: Fűtőolajok | B13: 0
A14: Földgáz | B14: 0
A15: PB/SNG-gáz | B15: 0
A16: Kamragáz | B16: 0
A17: Kohógáz | B17: 0
A18: Biogáz, biometán | B18: 1
A19: Hőszivattyú | B19: =1-1/SPF -> 0.6666666667
A21: * Forrás: Magyar Energetika 2017/1.
